fUST/lending_fUST_20250607
["ID","MTS","AMOUNT","RATE_DAILY","PERIOD"]
[364858574,1749277852324,-151.0,0.00022999,7]
[364858575,1749277852334,-271.188671,0.00022999,7]
[364858576,1749277852344,-271.188671,0.00022999,7]
[364858577,1749277852355,-151.0,0.00022999,7]
[364858578,1749277852366,-151.0,0.00022999,7]
[364858579,1749277852377,-151.0,0.00022999,7]
[364858580,1749277852386,-151.0,0.00022999,7]
[364858581,1749277852396,-151.0,0.00022999,7]
[364858582,1749277852406,-1144.46,0.00022999,2]
[364858583,1749277852417,-1144.46,0.00022999,2]
[364858584,1749277852426,-1144.46,0.00022999,2]
[364858585,1749277852436,-1144.46,0.00022999,2]
[364858586,1749277852446,-1144.46,0.00022999,2]
[364858587,1749277852457,-1144.46,0.00022999,2]
[364858588,1749277852466,-1144.46,0.00022999,2]
[364858589,1749277852477,-1144.515659,0.00022999,2]
[364858590,1749277852487,-625.634699,0.00022999,7]
[364858591,1749277852498,-221004.60924925,0.00023,2]
[364858592,1749277908916,842.8,0.00018,2]
[364858593,1749277909581,-239.46773755,0.00018,2]
[364858595,1749277923249,-237.54455244,0.00018,2]
[364858596,1749277926104,-285.15117557,0.00018,2]
[364858597,1749277933736,-227.08067549,0.00018,2]
[364858598,1749277936267,-258.75862943,0.00018,2]
[364858599,1749277941529,-237.62205689,0.00018,2]
[364858600,1749277945341,-247.73682323,0.00018,2]
[364858601,1749277949335,-189.59887719,0.00018,2]
[364858602,1749277951847,-142.23947221,0.00018,2]
[364858603,1749277951888,-141.98515571,0.00019014,2]
[364858604,1749277958048,-208.71843324,0.00019014,2]
[364858605,1749277960097,-164.36271843,0.00019014,2]
[364858613,1749278225564,-1836.91490603,0.000246,30]
[364858614,1749278225595,-100000.0,0.000246,30]
[364858615,1749278225622,-100000.0,0.000246,30]
[364858616,1749278225650,-100000.0,0.000246,30]
[364858617,1749278225679,-150.0,0.000246,30]
[364858618,1749278225707,-150.0,0.000246,60]
[364858619,1749278225736,-150.0,0.000246,90]
[364858620,1749278225762,-1187.0,0.000246,60]
[364858621,1749278225791,-1187.0,0.000246,60]
[364858622,1749278225816,-1187.0,0.000246,60]
[364858623,1749278225840,-1187.0,0.000246,60]
[364858624,1749278225864,-180.0,0.000246,60]
[364858625,1749278225888,-181.0,0.000246,60]
[364858626,1749278225915,-150.0,0.000246,60]
[364858627,1749278225940,-154.0,0.000246,60]
[364858628,1749278225965,-309.0,0.000246,60]
[364858629,1749278225989,-618.0,0.000246,60]
[364858630,1749278226014,-1236.0,0.000246,60]
[364858631,1749278226039,-1561.0,0.000246,60]
[364858632,1749278226065,-2406.0,0.000246,60]
[364858633,1749278226095,-2472.0,0.000246,60]
[364858634,1749278226120,-3818.0,0.000246,60]
[364858635,1749278226145,-147435.49629239,0.000246,30]
[364858636,1749278226171,-1255.92632529,0.000246,30]
[364858637,1749278226198,-10931.99242906,0.000246,60]
[364858638,1749278226226,-203996.95542526,0.000246,60]
[364858639,1749278226251,-5145.37117237,0.000246,30]
[364858640,1749278226277,-404625.98133246,0.000246,32]
[364858641,1749278226302,-6102.675913,0.000246,30]
[364858642,1749278226327,-10004.92331005,0.000246,31]
[364858643,1749278226353,-1376.03393474,0.000246,60]
[364858644,1749278226378,-75254.0,0.000246,32]
[364858645,1749278226404,-50967.77458855,0.000246,30]
[364858646,1749278226430,-10990.50556484,0.000246,30]
[364858647,1749278226454,-20897.801151,0.000246,30]
[364858648,1749278226480,-17795.59145877,0.000246,30]
[364858649,1749278226507,-34303.80698617,0.000246,30]
[364858650,1749278226532,-646309.85788379,0.000246,30]
[364858651,1749278226558,-29695.18455293,0.000246,30]
[364858652,1749278226585,-30241.07441263,0.000246,30]
[364858653,1749278226612,-1504.999999,0.000246,30]
[364858654,1749278226638,-1937.01476445,0.000246,60]
[364858655,1749278226663,-214.0,0.000246,60]
[364858656,1749278226687,-6591.0,0.000246,30]
[364858657,1749278226711,-10000.0,0.000246,30]
[364858658,1749278226736,-46712.2549266,0.000246,35]
[364858659,1749278226760,-24800.0,0.000246,30]
[364858660,1749278226786,-84794.0151282,0.000246,30]
[364858661,1749278226812,-905420.92,0.000246,30]
[364858662,1749278226839,-228028.14208235,0.000246,60]
[364858663,1749278226864,-662546.78546007,0.000246,30]
[364858664,1749278232431,-337453.21453993,0.000246,30]
[364858665,1749278232455,-846.29892172,0.000246,30]
[364858666,1749278232481,-2000.0,0.000246,30]
[364858667,1749278232506,-2000.0,0.000246,30]
[364858668,1749278232531,-2000.0,0.000246,30]
[364858669,1749278232557,-2000.0,0.000246,30]
[364858670,1749278232583,-2000.0,0.000246,30]
[364858671,1749278232768,-104389.62289888,0.000246,32]
[364858672,1749278232795,-2000.0,0.000246,30]
[364858673,1749278232822,-2000.0,0.000246,30]
[364858674,1749278232850,-1276.0,0.000246,30]
[364858675,1749278232874,-2000.0,0.000246,30]
[364858676,1749278232900,-2000.0,0.000246,30]
[364858677,1749278232924,-2000.0,0.000246,30]
[364858678,1749278232948,-502.0,0.000246,30]
[364858679,1749278232972,-502.0,0.000246,30]
[364858680,1749278232997,-7576.5388072,0.000246,35]
[364858681,1749278233022,-506.17114876,0.000246,60]
[364858682,1749278233048,-100000.0,0.000246,30]
[364858683,1749278233074,-100000.0,0.000246,30]
[364858684,1749278233104,-100000.0,0.000246,30]
[364858685,1749278259275,-28262.42053352,0.00024658,120]
[364858686,1749278259302,-2030.27568052,0.00024659,120]
[364858687,1749278259333,-154.0,0.00025,120]
[364858688,1749278259367,-200.0,0.00025,120]
[364858689,1749278259400,-50000.0,0.00025,120]
[364858690,1749278259427,-1220.0,0.00025,120]
[364858691,1749278259453,-10000.0,0.00025,120]
[364858692,1749278259480,-200.0,0.00025071,120]
[364858693,1749278331438,150.0,0.000246,90]
[364858694,1749278436589,-188.11901069,0.00018764,2]
[364858695,1749278439798,-342.10279694,0.00018764,2]
[364858696,1749278446416,-456.69794491,0.00019627,2]
[364858697,1749278448864,-193.3401252,0.00019627,2]
[364858698,1749278454680,-320.63012226,0.00018804,2]
[364858699,1749278457177,-236.28749876,0.00018804,2]
[364858700,1749278461687,-158.18523208,0.00018804,2]
[364858702,1749278464425,-191.89801977,0.00018804,2]
[364858703,1749278466095,159.245455,0.00013699,2]
[364858704,1749278470900,-151.47562089,0.00018804,2]
[364858705,1749278473905,-207.41661997,0.00018804,2]
[364858706,1749278478290,-340.74030046,0.00018804,2]
[364858707,1749278481158,-253.96030046,0.00018804,2]
[364858709,1749278485864,-157.56091234,0.00018804,2]
[364858710,1749278487932,-124.72537301,0.00018804,2]
[364858711,1749278487957,-39.09683054,0.00019627,2]
[364858714,1749278494020,-194.91840564,0.00019627,2]
[364858715,1749278496635,-182.41261038,0.00019627,2]
[364858723,1749278533618,-182.41261038,0.00018764,2]
[364858725,1749278542235,-456.69794491,0.00018764,2]
[364858730,1749278559956,-194.91840564,0.00018764,2]
[364858731,1749278567483,2000.0,0.000246,30]
[364858732,1749278567827,2000.0,0.000246,30]
[364858733,1749278568209,2000.0,0.000246,30]
[364858734,1749278568596,2000.0,0.000246,30]
[364858735,1749278568951,2000.0,0.000246,30]
[364858736,1749278569515,502.0,0.000246,30]
[364858737,1749278572685,-193.3401252,0.00018764,2]
[364858745,1749278630429,150.0,0.000246,90]
[364858783,1749278834144,-201.00758388,0.00018659,2]
[364858784,1749278834170,-2102.53,0.00018759,2]
[364858785,1749278834193,-171.241403,0.00019588,2]
[364858786,1749278834215,-1961.56412623,0.00019627,2]
[364858787,1749278834238,-184.046707,0.00019843,2]
[364858788,1749278834261,-300.0,0.00019997,2]
[364858789,1749278834284,-1200.0,0.00019998,2]
[364858790,1749278834310,-300.0,0.00019998,2]
[364858791,1749278834334,-300.0,0.00019999,2]
[364858792,1749278834356,-300.0,0.00019999,2]
[364858793,1749278834380,-276.0,0.00019999,2]
[364858794,1749278834403,-440.0,0.0002,2]
[364858795,1749278834427,-354.31315763,0.0002,2]
[364858797,1749278843102,-85.68684237,0.0002,2]
[364858798,1749278843125,-430.0,0.0002,2]
[364858799,1749278843150,-430.0,0.0002,2]
[364858800,1749278843173,-236.722876,0.00020232,2]
[364858801,1749278843196,-834.52263295,0.00020233,2]
[364858802,1749278843219,-229.56495552,0.00020233,2]
[364858803,1749278843246,-440.0,0.00020547,2]
[364858804,1749278843271,-440.0,0.00020547,2]
[364858805,1749278843296,-440.0,0.00020547,2]
[364858806,1749278843323,-440.0,0.00020547,2]
[364858807,1749278843353,-440.0,0.00020547,2]
[364858808,1749278843378,-440.0,0.00020547,2]
[364858809,1749278843402,-500.0,0.00020764,2]
[364858810,1749278843428,-163.56917484,0.000208,2]
[364858811,1749278843454,-440.0,0.0002082,2]
[364858812,1749278843480,-440.0,0.00020821,2]
[364858813,1749278843505,-440.0,0.00020821,2]
[364858814,1749278843692,-440.0,0.00020821,2]
[364858815,1749278843718,-440.0,0.00020821,2]
[364858816,1749278843744,-440.0,0.00020821,2]
[364858817,1749278843766,-440.0,0.00020821,2]
[364858818,1749278843789,-196.268,0.00020822,2]
[364858819,1749278843811,-250.0,0.00020839,2]
[364858820,1749278843833,-151.30541512,0.00020849,2]
[364858821,1749278843855,-2354.02453042,0.00020862,2]
[364858841,1749278930633,150.0,0.000246,120]
[364858861,1749279032015,-365.20408135,0.00018759,2]
[364858862,1749279032028,-286.26517349,0.00018759,2]
[364858869,1749279032254,-1424.31074516,0.00018759,2]
[364858872,1749279032263,-236.722877,0.00019312,2]
[364858873,1749279032273,-173.6572636,0.00020157,2]
[364858876,1749279032285,-660.86536935,0.00020157,2]
[364858878,1749279032295,-345.64448978,0.00020169,2]
[364858942,1749279038336,-171.35551022,0.00020169,2]
[364858944,1749279038346,-842.68965756,0.0002017,2]
[364858953,1749279038432,-845.33624538,0.0002017,2]
[364858964,1749279038527,-2455.4,0.0002017,2]
[364858966,1749279038539,-2671.74358926,0.0002017,2]
[364858968,1749279038549,-283.0,0.00020307,2]
[364858970,1749279038560,-23182.75641074,0.00020308,2]
[364859175,1749279040557,-329.35289405,0.00020308,2]
[364859665,1749279046134,-1387.89069521,0.00020308,2]
[364859667,1749279046144,-163.56917483,0.00020364,2]
[364859669,1749279046155,-4151.55,0.00020464,2]
[364859671,1749279046166,-741.2116287,0.00020543,2]
[364859673,1749279046176,-440.0,0.00020547,2]
[364859675,1749279046186,-440.0,0.00020547,2]
[364859677,1749279046196,-381.95596879,0.00020547,2]
[364859680,1749279046213,-58.04403121,0.00020547,2]
[364859681,1749279046223,-500.0,0.00020764,2]
[364859683,1749279046233,-440.0,0.0002082,2]
[364859685,1749279046243,-440.0,0.0002082,2]
[364859687,1749279046253,-476.95,0.0002082,2]
[364859689,1749279046263,-440.0,0.0002082,2]
[364859691,1749279046273,-440.0,0.0002082,2]
[364859693,1749279046283,-440.0,0.0002082,2]
[364859695,1749279046293,-440.0,0.0002082,2]
[364859697,1749279046303,-440.0,0.00020821,2]
[364859699,1749279046315,-123.23241885,0.00020821,2]
[364860540,1749279155282,4959.80502254,0.00024601,30]
[364860541,1749279163835,2000.0,0.00024601,30]
[364860542,1749279164125,1012.0,0.00024601,30]
[364860547,1749279396979,1116.0,0.0002547,120]
[364860553,1749279645840,185.0,0.000179,2]
[364860555,1749279673295,-860.05087844,0.00018765,2]
[364860556,1749279673324,-2140.84,0.00018787,2]
[364860557,1749279673347,-1027.3690862,0.00019691,2]
[364860558,1749279673373,-834.52263295,0.00020151,2]
[364860559,1749279673399,-500.0,0.00020307,2]
[364860560,1749279673425,-163.56917483,0.00020447,2]
[364860561,1749279673452,-300.0,0.00020534,2]
[364860562,1749279673478,-800.360223,0.00020535,2]
[364860563,1749279673505,-516.4058786,0.00020535,2]
[364860564,1749279673529,-5000.0,0.00020535,2]
[364860565,1749279673554,-4657.09349407,0.00020535,2]
[364860566,1749279673581,-207.4,0.00020535,2]
[364860567,1749279673607,-22586.78881896,0.00020535,2]
[364860568,1749279673632,-440.0,0.00020545,2]
[364860569,1749279673655,-430.0,0.00020546,2]
[364860570,1749279673682,-430.0,0.00020546,2]
[364860571,1749279673706,-430.0,0.00020546,2]
[364860572,1749279673729,-430.0,0.00020546,2]
[364860573,1749279673756,-440.0,0.00020546,2]
[364860574,1749279673783,-440.0,0.00020546,2]
[364860575,1749279673809,-430.0,0.00020546,2]
[364860576,1749279673832,-440.0,0.00020546,2]
[364860577,1749279673856,-440.0,0.00020546,2]
[364860578,1749279673881,-440.0,0.00020546,2]
[364860579,1749279673912,-440.0,0.00020546,2]
[364860580,1749279673939,-672.04,0.00020546,2]
[364860581,1749279673965,-440.0,0.00020546,2]
[364860582,1749279673989,-440.0,0.00020546,2]
[364860583,1749279674014,-440.0,0.00020546,2]
[364860584,1749279674038,-213.894,0.00020546,2]
[364860585,1749279674071,-440.0,0.00020546,2]
[364860586,1749279674097,-440.0,0.00020546,2]
[364860587,1749279674121,-440.0,0.00020547,2]
[364860588,1749279674147,-435.91555211,0.00020547,2]
[364860589,1749279674170,-440.0,0.00020547,2]
[364860590,1749279674193,-430.0,0.00020547,2]
[364860591,1749279674219,-440.0,0.00020547,2]
[364860592,1749279674243,-430.0,0.00020547,2]
[364860593,1749279674267,-440.0,0.00020547,2]
[364860594,1749279674291,-440.0,0.00020547,2]
[364860595,1749279674313,-440.0,0.00020547,2]
[364860596,1749279674337,-430.0,0.00020547,2]
[364860597,1749279674359,-430.0,0.00020547,2]
[364860598,1749279674382,-153.845607,0.00020547,2]
[364860599,1749279674537,-440.0,0.00020547,2]
[364860600,1749279674562,-481.69,0.00020547,2]
[364860601,1749279674585,-440.0,0.00020547,2]
[364860602,1749279674609,-452.29,0.00020547,2]
[364860603,1749279674646,-430.0,0.00020547,2]
[364860604,1749279674673,-430.0,0.00020547,2]
[364860605,1749279674700,-430.0,0.00020547,2]
[364860606,1749279674724,-187.40697428,0.00020547,2]
[364860607,1749279674749,-440.0,0.00020547,2]
[364860608,1749279674773,-430.0,0.00020547,2]
[364860609,1749279674796,-430.0,0.00020547,2]
[364860610,1749279674820,-163.5218092,0.00020547,2]
[364860611,1749279674844,-430.0,0.00020547,2]
[364860612,1749279674869,-430.0,0.00020547,2]
[364860613,1749279674895,-430.0,0.00020547,2]
[364860614,1749279674919,-564.92835148,0.00020547,2]
[364860615,1749279674942,-432.81345013,0.00020547,2]
[364860616,1749279674964,-461.81979733,0.00020547,2]
[364860617,1749279674986,-440.0,0.00020547,2]
[364860618,1749279675009,-440.0,0.00020547,2]
[364860619,1749279675034,-205.21767907,0.00020547,2]
[364860620,1749279675061,-440.0,0.00020547,2]
[364860621,1749279675090,-776.49,0.00020547,2]
[364860622,1749279675117,-440.0,0.00020547,2]
[364860623,1749279675140,-440.0,0.00020547,2]
[364860624,1749279675163,-5000.0,0.00020568,2]
[364860625,1749279675188,-4281.67,0.00020604,2]
[364860626,1749279675211,-600.0,0.00020765,2]
[364860627,1749279675234,-162.92,0.00020811,2]
[364860628,1749279675262,-500.0,0.00020819,2]
[364860629,1749279675285,-440.0,0.00020819,2]
[364860630,1749279675311,-440.0,0.0002082,2]
[364860631,1749279675336,-440.0,0.0002082,2]
[364860632,1749279675361,-440.0,0.0002082,2]
[364860633,1749279675385,-440.0,0.0002082,2]
[364860634,1749279675412,-440.0,0.0002082,2]
[364860635,1749279675439,-440.0,0.0002082,2]
[364860636,1749279675465,-440.0,0.0002082,2]
[364860637,1749279675494,-585.11,0.0002082,2]
[364860638,1749279675519,-440.0,0.0002082,2]
[364860639,1749279675544,-552.16560943,0.0002082,2]
[364860640,1749279675571,-440.0,0.0002082,2]
[364860641,1749279675598,-440.0,0.0002082,2]
[364860642,1749279675630,-440.0,0.0002082,2]
[364860643,1749279675657,-440.0,0.0002082,2]
[364860644,1749279675682,-440.0,0.0002082,2]
[364860645,1749279675710,-672.04,0.0002082,2]
[364860646,1749279675737,-440.0,0.0002082,2]
[364860647,1749279675764,-440.0,0.0002082,2]
[364860648,1749279675790,-390.0,0.0002082,2]
[364860649,1749279675815,-440.0,0.0002082,2]
[364860650,1749279675842,-440.0,0.0002082,2]
[364860651,1749279675869,-440.0,0.0002082,2]
[364860652,1749279675895,-440.0,0.0002082,2]
[364860653,1749279675920,-440.0,0.0002082,2]
[364860654,1749279675944,-440.0,0.0002082,2]
[364860655,1749279675967,-440.0,0.00020821,2]
[364860656,1749279675991,-440.0,0.00020821,2]
[364860657,1749279676018,-440.0,0.00020821,2]
[364860658,1749279676043,-776.49,0.00020821,2]
[364860659,1749279676070,-440.0,0.00020821,2]
[364860660,1749279676098,-440.0,0.00020821,2]
[364860661,1749279676641,440.0,0.00020546,2]
[364860662,1749279677248,440.0,0.0002082,2]
[364860663,1749279682270,173.33098292,0.0002082,2]
[364860667,1749279924995,159.064179,0.00013699,2]
[364860672,1749280039102,-2179.36,0.00018751,2]
[364860673,1749280039126,-167.53711714,0.000189,2]
[364860674,1749280039148,-177.517354,0.00019178,2]
[364860675,1749280039170,-300.0,0.00019675,2]
[364860676,1749280039194,-300.0,0.00019675,2]
[364860677,1749280039217,-300.0,0.00019676,2]
[364860678,1749280039240,-300.0,0.00019676,2]
[364860679,1749280039263,-300.0,0.00019676,2]
[364860680,1749280039286,-300.0,0.00019676,2]
[364860681,1749280039308,-1015.0,0.00019676,2]
[364860682,1749280039331,-3516.50935849,0.00019677,2]
[364860683,1749280041237,-9465.30534244,0.00019677,2]
[364860685,1749280076745,5168.0,0.00024604,60]
[364860742,1749280238490,-2162.35,0.0001875,2]
[364860744,1749280238501,-150.0,0.000189,2]
[364860746,1749280238511,-440.0,0.00019676,2]
[364860748,1749280238521,-300.0,0.00019676,2]
[364860750,1749280238531,-440.0,0.00019676,2]
[364860752,1749280238541,-440.0,0.00019676,2]
[364860753,1749280238550,-440.0,0.00019676,2]
[364860756,1749280238561,-11918.18529907,0.00019677,2]
[364860758,1749280238571,-1021.2703376,0.00019785,2]
[364860759,1749280238582,-526.03908764,0.000199,2]
[364860761,1749280238593,-440.0,0.0001995,2]
[364860762,1749280238603,-440.0,0.0001995,2]
[364860764,1749280238613,-440.0,0.0001995,2]
[364860766,1749280238624,-440.0,0.0001995,2]
[364860768,1749280238635,-185.0,0.0002,3]
[364860769,1749280238646,-183.46315,0.0002,3]
[364860770,1749280238657,-526.03908747,0.00020072,2]
[364860771,1749280238667,-440.0,0.00020224,2]
[364860772,1749280238678,-440.0,0.00020224,2]
[364860774,1749280238688,-440.0,0.00020224,2]
[364860775,1749280238698,-440.0,0.00020224,2]
[364860777,1749280238708,-526.03908747,0.00020245,2]
[364860779,1749280238719,-526.03908747,0.00020417,3]
[364860780,1749280238730,-4324.7,0.00020455,2]
[364860781,1749280238740,-834.52263295,0.00020482,2]
[364860783,1749280238750,-440.0,0.00020498,2]
[364860785,1749280238760,-440.0,0.00020498,2]
[364860787,1749280238770,-440.0,0.00020498,2]
[364860801,1749280238935,-440.0,0.00020498,2]
[364860802,1749280238946,-5000.0,0.00020508,2]
[364860803,1749280238957,-207.4,0.00020508,2]
[364860804,1749280238971,-440.0,0.00020545,2]
[364860805,1749280238982,-440.0,0.00020545,2]
[364860806,1749280238992,-299.82794083,0.00020545,2]
[364860807,1749280239003,-229.04348935,0.00020545,2]
[364860808,1749280239013,-440.0,0.00020545,2]
[364860809,1749280239024,-442.95650153,0.00020545,2]
[364860810,1749280239035,-187.81,0.00020545,2]
[364860811,1749280239046,-440.0,0.00020545,2]
[364860812,1749280239055,-440.0,0.00020545,2]
[364860813,1749280239065,-440.0,0.00020545,2]
[364860814,1749280239075,-440.0,0.00020545,2]
[364860815,1749280239085,-440.0,0.00020545,2]
[364860816,1749280239095,-440.0,0.00020545,2]
[364860817,1749280239105,-440.0,0.00020545,2]
[364860818,1749280239114,-440.0,0.00020545,2]
[364860819,1749280239124,-440.0,0.00020545,2]
[364860820,1749280239133,-440.0,0.00020545,2]
[364860821,1749280239143,-440.0,0.00020545,2]
[364860822,1749280239153,-560.73,0.00020545,2]
[364860823,1749280239163,-440.0,0.00020545,2]
[364860824,1749280239172,-440.0,0.00020546,2]
[364860825,1749280239182,-440.0,0.00020546,2]
[364860826,1749280239191,-440.0,0.00020546,2]
[364860827,1749280239201,-440.0,0.00020546,2]
[364860828,1749280239211,-440.0,0.00020546,2]
[364860829,1749280239224,-440.0,0.00020546,2]
[364860830,1749280239233,-711.78,0.00020546,2]
[364860831,1749280239244,-440.0,0.00020546,2]
[364860832,1749280239254,-526.03908747,0.0002059,3]
[364860833,1749280239264,-526.03908747,0.00020762,3]
[364860834,1749280239273,-600.0,0.00020765,2]
[364860835,1749280239284,-440.0,0.00020772,2]
[364860836,1749280239295,-440.0,0.00020772,2]
[364860837,1749280239305,-440.0,0.00020772,2]
[364860838,1749280239315,-440.0,0.00020818,2]
[364860839,1749280239324,-440.0,0.00020818,2]
[364860840,1749280239333,-440.0,0.00020818,2]
[364860841,1749280239344,-198.991,0.00020818,2]
[364860842,1749280239353,-440.0,0.00020818,2]
[364860843,1749280239363,-440.0,0.00020819,2]
[364860844,1749280239373,-440.0,0.00020819,2]
[364860845,1749280239383,-440.0,0.00020819,2]
[364860846,1749280239394,-440.0,0.00020819,2]
[364860847,1749280239404,-634.37,0.00020819,2]
[364860849,1749280239414,-440.0,0.00020819,2]
[364860851,1749280239424,-440.0,0.00020819,2]
[364860854,1749280239434,-440.0,0.00020819,2]
[364860857,1749280239444,-440.0,0.00020819,2]
[364860859,1749280239454,-440.0,0.00020819,2]
[364860861,1749280239465,-440.0,0.00020819,2]
[364860863,1749280239476,-440.0,0.00020819,2]
[364860865,1749280239486,-440.0,0.00020819,2]
[364860867,1749280239495,-440.0,0.00020819,2]
[364860869,1749280239505,-440.0,0.00020819,2]
[364860871,1749280239515,-560.73,0.00020819,2]
[364860872,1749280239524,-500.0,0.00020819,2]
[364860873,1749280239534,-440.0,0.0002082,2]
[364860874,1749280239544,-440.0,0.0002082,2]
[364860875,1749280239556,-440.0,0.0002082,2]
[364860876,1749280239566,-440.0,0.0002082,2]
[364860877,1749280239576,-440.0,0.0002082,2]
[364860878,1749280239586,-440.0,0.0002082,2]
[364860879,1749280239596,-711.78,0.0002082,2]
[364860880,1749280239606,-440.0,0.0002082,2]
[364860881,1749280239617,-159.91096927,0.00020821,2]
[364860882,1749280239627,-526.03908747,0.00020934,4]
[364860884,1749280239636,-159.064179,0.00020951,2]
[364860885,1749280239647,-440.0,0.00021046,2]
[364860886,1749280239657,-440.0,0.00021046,2]
[364860887,1749280239668,-440.0,0.00021046,2]
[364860888,1749280239678,-440.0,0.00021092,2]
[364860889,1749280239685,-440.0,0.00021092,2]
[364860890,1749280239692,-440.0,0.00021092,2]
[364860892,1749280239700,-440.0,0.00021093,2]
[364860893,1749280239707,-440.0,0.00021093,2]
[364860895,1749280239714,-440.0,0.00021093,2]
[364860896,1749280239724,-440.0,0.00021093,2]
[364860897,1749280239732,-440.0,0.00021093,2]
[364860898,1749280239740,-440.0,0.00021093,2]
[364860899,1749280239751,-440.0,0.00021093,2]
[364860900,1749280239761,-634.37,0.00021093,2]
[364860901,1749280239772,-440.0,0.00021093,2]
[364860902,1749280239782,-440.0,0.00021093,2]
[364860903,1749280239792,-440.0,0.00021093,2]
[364860904,1749280239802,-440.0,0.00021093,2]
[364860905,1749280239812,-440.0,0.00021093,2]
[364860906,1749280239822,-440.0,0.00021093,2]
[364860907,1749280239832,-440.0,0.00021093,2]
[364860908,1749280239842,-440.0,0.00021093,2]
[364860909,1749280239853,-440.0,0.00021093,2]
[364860910,1749280239867,-560.73,0.00021093,2]
[364860911,1749280239877,-500.0,0.00021093,2]
[364860913,1749280239887,-385.26,0.00021094,2]
[364860915,1749280239896,-440.0,0.00021094,2]
[364860916,1749280239906,-440.0,0.00021094,2]
[364860917,1749280239916,-440.0,0.00021094,2]
[364860918,1749280239926,-440.0,0.00021094,2]
[364860919,1749280239935,-440.0,0.00021094,2]
[364860920,1749280239945,-160.0,0.00021094,2]
[364860921,1749280239956,-440.0,0.00021094,2]
[364860922,1749280239966,-711.78,0.00021094,2]
[364860923,1749280239976,-440.0,0.00021094,2]
[364860924,1749280239986,-440.0,0.00021095,2]
[364860925,1749280239995,-364.95672582,0.000211,2]
[364860926,1749280240005,-526.03908747,0.00021107,4]
[364860927,1749280240014,-526.03908747,0.00021279,5]
[364860928,1749280240023,-440.0,0.00021319,2]
[364860929,1749280240033,-440.0,0.00021319,2]
[364860930,1749280240043,-440.0,0.00021319,2]
[364860931,1749280240052,-440.0,0.00021366,2]
[364860932,1749280240062,-440.0,0.00021366,2]
[364860933,1749280240072,-440.0,0.00021367,2]
[364860934,1749280240082,-440.0,0.00021367,2]
[364860935,1749280240091,-399.9700001,0.00021367,2]
[364860936,1749280240101,-440.0,0.00021367,2]
[364860937,1749280240111,-440.0,0.00021367,2]
[364860938,1749280240121,-440.0,0.00021367,2]
[364860939,1749280240130,-440.0,0.00021367,2]
[364860940,1749280240141,-634.37,0.00021367,2]
[364860941,1749280240150,-440.0,0.00021367,2]
[364860942,1749280240160,-440.07750445,0.00021367,2]
[364860943,1749280240170,-440.0,0.00021367,2]
[364860944,1749280240180,-440.0,0.00021367,2]
[364860945,1749280240190,-440.0,0.00021367,2]
[364860946,1749280240200,-560.73,0.00021367,2]
[364860947,1749280240210,-358.28623939,0.00021368,2]
[364860948,1749280240219,-440.0,0.00021368,2]
[364860949,1749280240229,-440.0,0.00021368,2]